[Event "Mitropa Online Cup Open 2021"]
[Site "Hybrid"]
[Date "2021.05.04"]
[Round "7.4"]
[White "Studer, Noel"]
[Black "Mihok, Oliver"]
[Result "1-0"]
[ECO "E91"]
[WhiteElo "2579"]
[BlackElo "2547"]
[Annotator "ChessBase"]
[PlyCount "115"]
[EventDate "2021.05.04"]
[EventType "team-tourn"]
[EventCountry "NET"]
[SourceTitle "playchess.com"]
[Source "ChessBase"]
[SourceQuality "1"]
[WhiteTeam "Switzerland"]
[BlackTeam "Hungary"]
[WhiteTeamCountry "SUI"]
[BlackTeamCountry "HUN"]
[TimeControl "40/5400+30:1800+30"]

1. d4 {[%emt 0:00:00]} Nf6 {[%emt 0:00:15]} 2. c4 {[%emt 0:00:03]} g6 {[%emt 0:00:05]} 3. Nc3 {[%emt 0:00:03]} Bg7 {[%emt 0:00:04]} 4. e4 {[%emt 0:00:01]} d6 {[%emt 0:00:06]} 5. Nf3 {[%emt 0:00:02]} Bg4 {[%emt 0:00:06]} 6. Be2 {[%emt 0:00:05]} O-O {[%emt 0:00:07]} 7. Be3 {[%emt 0:00:05]} Nfd7 {[%emt 0:00:08]} 8. Qd2 {[%emt 0:00:10]} e5 {[%emt 0:01:46]} 9. d5 {[%emt 0:00:08]} Bxf3 {[%emt 0:01:57]} 10. Bxf3 {[%emt 0:02:29]} f5 {[%emt 0:00:16]} 11. Qe2 {[%emt 0:01:28]} a5 {[%emt 0:01:25]} 12. h4 {[%emt 0:01:41]} f4 {[%emt 0:19:36]} 13. Bd2 {[%emt 0:00:06]} Na6 {[%emt 0:08:28]} 14. h5 {[%emt 0:00:52]} g5 {[%emt 0:01:25]} 15. h6 {[%emt 0:00:38]} Bf6 {[%emt 0:00:11]} 16. O-O-O {[%emt 0:03:46]} Ndc5 {[%emt 0:03:24]} 17. Kb1 {[%emt 0:01:18]} Nb4 {[%emt 0:02:03]} 18. Nb5 {[%emt 0:23:07]} Nbd3 {[%emt 0:22:07]} 19. Bc3 {[%emt 0:05:15]} c6 {[%emt 0:00:52]} 20. Na3 {[%emt 0:01:27]} Nb4 {[%emt 0:01:21]} 21. Bg4 {[%emt 0:01:02]} Kh8 {[%emt 0:03:03]} 22. Bf5 {[%emt 0:03:02]} Qc7 {[%emt 0:03:27]} 23. g3 {[%emt 0:15:28]} Na4 {[%emt 0:01:46]} 24. Be1 {[%emt 0:01:08]} Qb6 {[%emt 0:09:59]} 25. f3 {[%emt 0:10:31]} fxg3 {[%emt 0:05:04]} 26. Rh3 {[%emt 0:00:36]} Qa6 {[%emt 0:03:15]} 27. Rxg3 {[%emt 0:18:15]} cxd5 {[%emt 0:01:50]} 28. exd5 {[%emt 0:01:06]} e4 {[%emt 0:00:14]} 29. fxe4 {[%emt 0:02:46]} Nxb2 {[%emt 0:01:33]} 30. Rd2 {[%emt 0:00:08]} Na4 {[%emt 0:00:43]} 31. Nb5 {[%emt 0:00:37]} Qb6 {[%emt 0:04:03]} 32. Bf2 {[%emt 0:00:03]} Qd8 {[%emt 0:00:32]} 33. Qg4 {[%emt 0:04:38]} Nb6 {[%emt 0:01:02]} 34. Qe2 {[%emt 0:00:51]} Be5 {[%emt 0:01:36]} 35. Bd4 {[%emt 0:02:01]} Qf6 {[%emt 0:01:44]} 36. a3 {[%emt 0:02:09]} Na6 {[%emt 0:00:34]} 37. Bxe5 {[%emt 0:00:37]} Qxe5 {[%emt 0:00:37]} 38. Rxg5 {[%emt 0:00:08]} Rf6 {[%emt 0:00:34]} 39. Rd1 {[%emt 0:01:07]} Nc5 {[%emt 0:01:32]} 40. Rdg1 {[%emt 0:00:00]} Nb3 {[%emt 0:00:00]} 41. Ka2 {[%emt 0:07:04]} Rxh6 {[%emt 0:18:29]} 42. Kxb3 {[%emt 0:00:18]} Rf8 {[%emt 0:01:58]} 43. Be6 {[%emt 0:07:29]} a4+ {[%emt 0:01:44]} 44. Kb4 {[%emt 0:00:04]} Rg6 {[%emt 0:00:58]} 45. Rxe5 {[%emt 0:00:23]} Rxg1 {[%emt 0:00:03]} 46. Nxd6 {[%emt 0:00:34]} Rb1+ {[%emt 0:00:51]} 47. Kc5 {[%emt 0:00:09]} Rff1 {[%emt 0:01:23]} 48. Nf7+ {[%emt 0:00:56]} Kg7 {[%emt 0:00:03]} 49. Rg5+ {[%emt 0:00:23]} Kf8 {[%emt 0:00:03]} 50. Ne5 {[%emt 0:00:23]} Ke7 {[%emt 0:00:34]} 51. d6+ {[%emt 0:00:19]} Kxe6 {[%emt 0:00:05]} 52. Qg4+ {[%emt 0:00:02]} Kf6 {[%emt 0:00:08]} 53. Rf5+ {[%emt 0:00:02]} Rxf5 {[%emt 0:00:08]} 54. Qxf5+ {[%emt 0:00:03]} Kg7 {[%emt 0:00:02]} 55. Qg5+ {[%emt 0:00:06]} Kf8 {[%emt 0:00:06]} 56. Qf6+ {[%emt 0:00:01]} Kg8 {[%emt 0:00:06]} 57. Qf7+ {[%emt 0:00:02]} Kh8 {[%emt 0:00:13]} 58. Qf8# {[%emt 0:00:02]} 1-0

[Event "Mitropa Online Cup Open 2021"]
[Site "Hybrid"]
[Date "2021.05.04"]
[Round "7.4"]
[White "Nagy, Gabor"]
[Black "Baenziger, Fabian"]
[Result "1-0"]
[ECO "E07"]
[WhiteElo "2511"]
[BlackElo "2400"]
[Annotator "ChessBase"]
[PlyCount "61"]
[EventDate "2021.05.04"]
[EventType "team-tourn"]
[EventCountry "NET"]
[SourceTitle "playchess.com"]
[Source "ChessBase"]
[SourceQuality "1"]
[WhiteTeam "Hungary"]
[BlackTeam "Switzerland"]
[WhiteTeamCountry "HUN"]
[BlackTeamCountry "SUI"]
[TimeControl "40/5400+30:1800+30"]

1. d4 {[%emt 0:00:00]} d5 {[%emt 0:00:09]} 2. Nf3 {[%emt 0:00:13]} Nf6 {[%emt 0:00:07]} 3. c4 {[%emt 0:00:10]} c6 {[%emt 0:00:08]} 4. Nc3 {[%emt 0:00:12]} e6 {[%emt 0:00:07]} 5. g3 {[%emt 0:01:38]} Nbd7 {[%emt 0:00:07]} 6. Qd3 {[%emt 0:00:11]} b6 {[%emt 0:08:43]} 7. Bg2 {[%emt 0:00:35]} Be7 {[%emt 0:01:10]} 8. O-O {[%emt 0:00:45]} Ba6 {[%emt 0:02:22]} 9. b3 {[%emt 0:00:13]} O-O {[%emt 0:00:07]} 10. Rd1 {[%emt 0:02:01]} Rc8 {[%emt 0:16:20]} 11. e4 {[%emt 0:00:35]} dxc4 {[%emt 0:08:21]} 12. bxc4 {[%emt 0:01:32]} b5 {[%emt 0:00:21]} 13. cxb5 {[%emt 0:06:27]} cxb5 {[%emt 0:00:34]} 14. e5 {[%emt 0:01:51]} Nd5 {[%emt 0:08:33]} 15. Nxd5 {[%emt 0:00:49]} exd5 {[%emt 0:00:31]} 16. a4 {[%emt 0:04:08]} Qb6 {[%emt 0:03:45]} 17. Qf5 {[%emt 0:06:20]} Qe6 {[%emt 0:04:59]} 18. Bh3 {[%emt 0:03:13]} Qxf5 {[%emt 0:02:33]} 19. Bxf5 {[%emt 0:00:15]} Rc7 {[%emt 0:00:02]} 20. e6 {[%emt 0:01:44]} Nf6 {[%emt 0:00:42]} 21. Bf4 {[%emt 0:00:22]} Rb7 {[%emt 0:00:41]} 22. exf7+ {[%emt 0:01:06]} Kxf7 {[%emt 0:00:04]} 23. Ng5+ {[%emt 0:00:38]} Ke8 {[%emt 0:00:08]} 24. Ne6 {[%emt 0:03:34]} b4 {[%emt 0:01:04]} 25. Nxf8 {[%emt 0:04:18]} Kxf8 {[%emt 0:00:40]} 26. Bc8 {[%emt 0:01:15]} Rb6 {[%emt 0:00:04]} 27. a5 {[%emt 0:00:34]} Rc6 {[%emt 0:00:08]} 28. Bxa6 {[%emt 0:00:07]} Rxa6 {[%emt 0:00:02]} 29. f3 {[%emt 0:00:20]} Rc6 {[%emt 0:01:42]} 30. a6 {[%emt 0:01:01]} Nd7 {[%emt 0:00:28]} 31. Ra5 {[%emt 0:00:31]} 1-0

[Event "Mitropa Online Cup Open 2021"]
[Site "Hybrid"]
[Date "2021.05.04"]
[Round "7.4"]
[White "Fecker, Noah"]
[Black "Borhy, Marcell"]
[Result "1/2-1/2"]
[ECO "B52"]
[WhiteElo "2308"]
[BlackElo "2406"]
[Annotator "NA"]
[PlyCount "64"]
[EventDate "2021.05.04"]
[EventType "team-tourn"]
[EventCountry "NET"]
[SourceTitle "playchess.com"]
[Source "ChessBase"]
[SourceQuality "1"]
[WhiteTeam "Switzerland"]
[BlackTeam "Hungary"]
[WhiteTeamCountry "SUI"]
[BlackTeamCountry "HUN"]
[TimeControl "40/5400+30:1800+30"]

1. e4 {[%emt 0:00:00]} c5 {[%emt 0:00:06]} 2. Nf3 {[%emt 0:00:05]} d6 {[%emt 0:00:05]} 3. Bb5+ {[%emt 0:00:09]} Bd7 {[%emt 0:00:06]} 4. Bxd7+ {[%emt 0:00:05]} Qxd7 {[%emt 0:00:04]} 5. c4 {[%emt 0:00:08]} Nf6 {[%emt 0:00:05]} 6. Nc3 {[%emt 0:00:05]} g6 {[%emt 0:00:04]} 7. d4 {[%emt 0:00:09]} cxd4 {[%emt 0:00:07]} 8. Nxd4 {[%emt 0:00:03]} Bg7 {[%emt 0:00:05]} 9. f3 {[%emt 0:00:08]} O-O {[%emt 0:00:05]} 10. Be3 {[%emt 0:00:20]} Nc6 {[%emt 0:00:06]} 11. O-O {[%emt 0:00:12]} a6 {[%emt 0:00:13]} 12. Qd3 {[%emt 0:01:30]} Ne5 {[%emt 0:04:00]} 13. Qe2 {[%emt 0:00:34]} e6 {[%emt 0:03:59]} 14. b3 {[%emt 0:14:13]} Qc7 {[%emt 0:05:08]} 15. Rac1 {[%emt 0:04:44]} Rac8 {[%emt 0:01:16]} 16. Rfd1 {[%emt 0:02:57]} Rfd8 {[%emt 0:07:20]} 17. Kh1 {[%emt 0:04:53]} Qa5 {[%emt 0:07:45]} 18. Qd2 {[%emt 0:02:40]} Nc6 {[%emt 0:07:41]} 19. Nxc6 {[%emt 0:20:22]} Rxc6 {[%emt 0:11:58]} 20. Bd4 {[%emt 0:01:18]} b5 {[%emt 0:17:33]} 21. Nd5 {[%emt 0:16:23]} Qxd2 {[%emt 0:02:07]} 22. Ne7+ {[%emt 0:00:10]} Kf8 {[%emt 0:01:10]} 23. Nxc6 {[%emt 0:00:36]} Qxa2 {[%emt 0:04:53]} 24. Nxd8 {[%emt 0:00:45]} Ne8 {[%emt 0:00:58]} 25. Bxg7+ {[%emt 0:04:44]} Kxg7 {[%emt 0:00:12]} 26. cxb5 {[%emt 0:02:01]} axb5 {[%emt 0:00:32]} 27. Nc6 {[%emt 0:06:22]} Qxb3 {[%emt 0:01:29]} 28. Nd4 {[%emt 0:00:09]} Qa4 {[%emt 0:03:03]} 29. Ra1 {[%emt 0:00:26]} Qc4 {[%emt 0:01:18]} 30. Rac1 {[%emt 0:00:27]} Qa4 {[%emt 0:01:23]} 31. Ra1 {[%emt 0:00:51]} Qc4 {[%emt 0:05:22]} 32. Rac1 {[%emt 0:00:31]} Qa4 {[%emt 0:04:17]} 1/2-1/2

[Event "Mitropa Online Cup Open 2021"]
[Site "Hybrid"]
[Date "2021.05.04"]
[Round "7.5"]
[White "Gazik, Viktor"]
[Black "Nguyen, Thai Dai Van"]
[Result "1-0"]
[ECO "C45"]
[WhiteElo "2542"]
[BlackElo "2577"]
[Annotator "ChessBase"]
[PlyCount "85"]
[EventDate "2021.05.04"]
[EventType "team-tourn"]
[EventCountry "NET"]
[SourceTitle "playchess.com"]
[Source "ChessBase"]
[SourceQuality "1"]
[WhiteTeam "Slovakia"]
[BlackTeam "Czech Republic"]
[WhiteTeamCountry "SVK"]
[BlackTeamCountry "CZE"]
[TimeControl "40/5400+30:1800+30"]

1. e4 {[%emt 0:00:00]} e5 {[%emt 0:00:07]} 2. Nf3 {[%emt 0:00:07]} Nc6 {[%emt 0:00:05]} 3. d4 {[%emt 0:01:05]} exd4 {[%emt 0:00:08]} 4. Nxd4 {[%emt 0:00:08]} Qf6 {[%emt 0:08:48]} 5. Nf3 {[%emt 0:03:25]} Bb4+ {[%emt 0:06:28]} 6. Nbd2 {[%emt 0:00:34]} Nge7 {[%emt 0:01:52]} 7. Bd3 {[%emt 0:06:49]} d6 {[%emt 0:04:36]} 8. O-O {[%emt 0:06:49]} O-O {[%emt 0:00:18]} 9. c3 {[%emt 0:12:06]} Bc5 {[%emt 0:00:27]} 10. e5 {[%emt 0:12:15]} Nxe5 {[%emt 0:16:54]} 11. Nxe5 {[%emt 0:00:43]} dxe5 {[%emt 0:00:27]} 12. Ne4 {[%emt 0:00:13]} Qc6 {[%emt 0:02:21]} 13. Qh5 {[%emt 0:04:49]} Ng6 {[%emt 0:10:34]} 14. Ng5 {[%emt 0:01:48]} h6 {[%emt 0:00:15]} 15. Nxf7 {[%emt 0:06:08]} Rxf7 {[%emt 0:06:04]} 16. Bxg6 {[%emt 0:13:22]} Rf6 {[%emt 0:02:52]} 17. Bc2 {[%emt 0:01:25]} Be6 {[%emt 0:02:59]} 18. Be3 {[%emt 0:04:31]} Bxe3 {[%emt 0:04:50]} 19. fxe3 {[%emt 0:00:04]} Bc4 {[%emt 0:00:10]} 20. Rxf6 {[%emt 0:02:20]} Qxf6 {[%emt 0:00:08]} 21. Qg4 {[%emt 0:00:03]} Bd5 {[%emt 0:05:35]} 22. Rf1 {[%emt 0:00:22]} Qg5 {[%emt 0:07:22]} 23. Qxg5 {[%emt 0:00:25]} hxg5 {[%emt 0:00:02]} 24. Rf5 {[%emt 0:11:44]} Bxa2 {[%emt 0:00:53]} 25. Rxe5 {[%emt 0:00:05]} Rd8 {[%emt 0:01:04]} 26. Ra5 {[%emt 0:00:32]} Rd2 {[%emt 0:09:37]} 27. Be4 {[%emt 0:00:14]} Be6 {[%emt 0:00:12]} 28. b4 {[%emt 0:08:08]} Ra2 {[%emt 0:06:15]} 29. Re5 {[%emt 0:02:30]} Kf7 {[%emt 0:01:50]} 30. Bxb7 {[%emt 0:00:03]} Kf6 {[%emt 0:00:29]} 31. Rc5 {[%emt 0:00:03]} Re2 {[%emt 0:00:03]} 32. e4 {[%emt 0:00:33]} Ra2 {[%emt 0:01:09]} 33. Rxc7 {[%emt 0:00:53]} a5 {[%emt 0:00:02]} 34. Rc6 {[%emt 0:01:07]} Ra1+ {[%emt 0:01:15]} 35. Kf2 {[%emt 0:00:01]} Ke7 {[%emt 0:00:23]} 36. Ra6 {[%emt 0:01:09]} Ra2+ {[%emt 0:00:50]} 37. Kg1 {[%emt 0:00:05]} Ra1+ {[%emt 0:00:25]} 38. Kf2 {[%emt 0:00:02]} Ra2+ {[%emt 0:00:02]} 39. Ke3 {[%emt 0:01:06]} Rc2 {[%emt 0:01:04]} 40. Kd3 {[%emt 0:00:00]} Rxg2 {[%emt 0:00:00]} 41. bxa5 {[%emt 0:01:50]} Rxh2 {[%emt 0:00:15]} 42. Rxe6+ {[%emt 0:03:44]} Kxe6 {[%emt 0:00:22]} 43. a6 {[%emt 0:00:05]} 1-0

[Event "Mitropa Online Cup Open 2021"]
[Site "Hybrid"]
[Date "2021.05.04"]
[Round "7.5"]
[White "Krejci, Jan"]
[Black "Pechac, Jergus"]
[Result "1-0"]
[ECO "D45"]
[WhiteElo "2540"]
[BlackElo "2519"]
[Annotator "ChessBase"]
[PlyCount "69"]
[EventDate "2021.05.04"]
[EventType "team-tourn"]
[EventCountry "NET"]
[SourceTitle "playchess.com"]
[Source "ChessBase"]
[SourceQuality "1"]
[WhiteTeam "Czech Republic"]
[BlackTeam "Slovakia"]
[WhiteTeamCountry "CZE"]
[BlackTeamCountry "SVK"]
[TimeControl "40/5400+30:1800+30"]

1. c4 {[%emt 0:00:00]} c6 {[%emt 0:00:06]} 2. Nf3 {[%emt 0:00:17]} d5 {[%emt 0:00:06]} 3. e3 {[%emt 0:00:06]} Nf6 {[%emt 0:00:05]} 4. Nc3 {[%emt 0:00:15]} e6 {[%emt 0:00:08]} 5. b3 {[%emt 0:00:33]} Bd6 {[%emt 0:00:10]} 6. Bb2 {[%emt 0:00:07]} O-O {[%emt 0:00:10]} 7. d4 {[%emt 0:03:55]} Nbd7 {[%emt 0:00:58]} 8. Be2 {[%emt 0:00:08]} b6 {[%emt 0:02:21]} 9. O-O {[%emt 0:00:48]} Bb7 {[%emt 0:00:10]} 10. Qc2 {[%emt 0:03:04]} Qe7 {[%emt 0:02:51]} 11. Rad1 {[%emt 0:05:46]} Rad8 {[%emt 0:01:42]} 12. Rfe1 {[%emt 0:02:28]} Rfe8 {[%emt 0:00:10]} 13. Bf1 {[%emt 0:02:49]} c5 {[%emt 0:00:06]} 14. cxd5 {[%emt 0:07:08]} exd5 {[%emt 0:00:28]} 15. g3 {[%emt 0:01:43]} Rc8 {[%emt 0:00:07]} 16. dxc5 {[%emt 0:13:04]} bxc5 {[%emt 0:02:47]} 17. Bg2 {[%emt 0:02:08]} Nb6 {[%emt 0:02:33]} 18. Qf5 {[%emt 0:09:27]} Bb8 {[%emt 0:15:50]} 19. Rc1 {[%emt 0:05:19]} Qe6 {[%emt 0:12:29]} 20. Qb1 {[%emt 0:06:27]} Qg4 {[%emt 0:02:54]} 21. Nd2 {[%emt 0:02:43]} Ba6 {[%emt 0:08:25]} 22. a4 {[%emt 0:03:24]} Qb4 {[%emt 0:12:30]} 23. Red1 {[%emt 0:02:08]} c4 {[%emt 0:02:34]} 24. Na2 {[%emt 0:02:17]} Qe7 {[%emt 0:00:59]} 25. Bxf6 {[%emt 0:03:49]} Qxf6 {[%emt 0:03:01]} 26. Nb4 {[%emt 0:01:16]} c3 {[%emt 0:07:47]} 27. Nxa6 {[%emt 0:00:56]} cxd2 {[%emt 0:00:06]} 28. Rxc8 {[%emt 0:00:16]} Rxc8 {[%emt 0:00:05]} 29. Nxb8 {[%emt 0:00:31]} Qc3 {[%emt 0:00:33]} 30. Qa2 {[%emt 0:01:17]} Rxb8 {[%emt 0:01:58]} 31. a5 {[%emt 0:03:12]} Nd7 {[%emt 0:05:17]} 32. Bxd5 {[%emt 0:00:56]} Ne5 {[%emt 0:00:33]} 33. Qxd2 {[%emt 0:03:48]} Rxb3 {[%emt 0:00:29]} 34. Rc1 {[%emt 0:02:34]} Qxd2 {[%emt 0:02:32]} 35. Rc8# {[%emt 0:00:07]} 1-0

[Event "Mitropa Online Cup Open 2021"]
[Site "Hybrid"]
[Date "2021.05.04"]
[Round "7.5"]
[White "Druska, Juraj"]
[Black "Kriebel, Tadeas"]
[Result "1/2-1/2"]
[ECO "B47"]
[WhiteElo "2494"]
[BlackElo "2527"]
[Annotator "ChessBase"]
[PlyCount "67"]
[EventDate "2021.05.04"]
[EventType "team-tourn"]
[EventCountry "NET"]
[SourceTitle "playchess.com"]
[Source "ChessBase"]
[SourceQuality "1"]
[WhiteTeam "Slovakia"]
[BlackTeam "Czech Republic"]
[WhiteTeamCountry "SVK"]
[BlackTeamCountry "CZE"]
[TimeControl "40/5400+30:1800+30"]

1. e4 {[%emt 0:00:00]} c5 {[%emt 0:00:14]} 2. Nf3 {[%emt 0:00:15]} e6 {[%emt 0:00:16]} 3. d4 {[%emt 0:00:42]} cxd4 {[%emt 0:00:06]} 4. Nxd4 {[%emt 0:00:02]} Nc6 {[%emt 0:00:06]} 5. Nc3 {[%emt 0:00:34]} Qc7 {[%emt 0:00:06]} 6. g3 {[%emt 0:01:01]} a6 {[%emt 0:00:18]} 7. Bg2 {[%emt 0:00:06]} Nf6 {[%emt 0:00:41]} 8. O-O {[%emt 0:00:13]} Nxd4 {[%emt 0:00:07]} 9. Qxd4 {[%emt 0:00:13]} Bc5 {[%emt 0:00:06]} 10. Bf4 {[%emt 0:00:31]} d6 {[%emt 0:00:12]} 11. Qd2 {[%emt 0:00:05]} h6 {[%emt 0:00:15]} 12. Rad1 {[%emt 0:01:15]} e5 {[%emt 0:00:06]} 13. Be3 {[%emt 0:00:03]} Bb4 {[%emt 0:00:38]} 14. Nb5 {[%emt 0:00:11]} axb5 {[%emt 0:00:09]} 15. Qxb4 {[%emt 0:00:08]} Rxa2 {[%emt 0:00:14]} 16. Rxd6 {[%emt 0:04:20]} O-O {[%emt 0:02:35]} 17. Rd2 {[%emt 0:01:31]} Be6 {[%emt 0:00:07]} 18. Rfd1 {[%emt 0:01:13]} Ng4 {[%emt 0:00:30]} 19. Bc5 {[%emt 0:24:33]} Rc8 {[%emt 0:00:08]} 20. Be7 {[%emt 0:01:35]} Ra4 {[%emt 0:00:24]} 21. Qd6 {[%emt 0:00:50]} Rd4 {[%emt 0:01:15]} 22. Rxd4 {[%emt 0:14:37]} exd4 {[%emt 0:00:09]} 23. Qxc7 {[%emt 0:00:22]} Rxc7 {[%emt 0:00:16]} 24. h3 {[%emt 0:00:10]} Rxe7 {[%emt 0:03:21]} 25. hxg4 {[%emt 0:01:29]} Rc7 {[%emt 0:00:06]} 26. Rxd4 {[%emt 0:07:07]} Rxc2 {[%emt 0:00:14]} 27. e5 {[%emt 0:01:46]} Rxb2 {[%emt 0:01:38]} 28. Bxb7 {[%emt 0:00:49]} b4 {[%emt 0:27:20]} 29. Bd5 {[%emt 0:03:39]} b3 {[%emt 0:00:30]} 30. Bxe6 {[%emt 0:01:55]} fxe6 {[%emt 0:00:06]} 31. Rd8+ {[%emt 0:04:41]} Kh7 {[%emt 0:00:58]} 32. Rb8 {[%emt 0:00:54]} Kg6 {[%emt 0:07:48]} 33. Rb7 {[%emt 0:09:40]} Rb1+ {[%emt 0:05:16]} 34. Kg2 {[%emt 0:00:12]} 1/2-1/2

[Event "Mitropa Online Cup Open 2021"]
[Site "Hybrid"]
[Date "2021.05.04"]
[Round "7.5"]
[White "Finek, Vaclav"]
[Black "Nayhebaver, Martin"]
[Result "0-1"]
[ECO "E05"]
[WhiteElo "2361"]
[BlackElo "2485"]
[Annotator "ChessBase"]
[PlyCount "90"]
[EventDate "2021.05.04"]
[EventType "team-tourn"]
[EventCountry "NET"]
[SourceTitle "playchess.com"]
[Source "ChessBase"]
[SourceQuality "1"]
[WhiteTeam "Czech Republic"]
[BlackTeam "Slovakia"]
[WhiteTeamCountry "CZE"]
[BlackTeamCountry "SVK"]
[TimeControl "40/5400+30:1800+30"]

1. Nf3 {[%emt 0:00:00]} Nf6 {[%emt 0:00:16]} 2. c4 {[%emt 0:00:07]} e6 {[%emt 0:00:38]} 3. g3 {[%emt 0:00:05]} Be7 {[%emt 0:00:48]} 4. Bg2 {[%emt 0:00:07]} d5 {[%emt 0:00:18]} 5. O-O {[%emt 0:00:21]} O-O {[%emt 0:00:23]} 6. d4 {[%emt 0:00:28]} dxc4 {[%emt 0:00:30]} 7. Qa4 {[%emt 0:00:41]} c5 {[%emt 0:02:14]} 8. dxc5 {[%emt 0:03:54]} Qd5 {[%emt 0:00:14]} 9. Nfd2 {[%emt 0:08:51]} Qxc5 {[%emt 0:01:11]} 10. Qxc4 {[%emt 0:01:29]} Qh5 {[%emt 0:02:32]} 11. Nc3 {[%emt 0:09:28]} Nc6 {[%emt 0:02:43]} 12. Nf3 {[%emt 0:07:57]} e5 {[%emt 0:03:05]} 13. Qh4 {[%emt 0:05:07]} Qxh4 {[%emt 0:06:09]} 14. Nxh4 {[%emt 0:00:08]} Be6 {[%emt 0:00:16]} 15. Bg5 {[%emt 0:04:57]} h6 {[%emt 0:04:49]} 16. Bxf6 {[%emt 0:00:35]} Bxf6 {[%emt 0:00:09]} 17. Nf3 {[%emt 0:03:47]} Rfd8 {[%emt 0:04:48]} 18. Ne4 {[%emt 0:10:52]} Be7 {[%emt 0:01:02]} 19. Rfc1 {[%emt 0:00:41]} f5 {[%emt 0:10:18]} 20. Nc5 {[%emt 0:01:37]} Bc8 {[%emt 0:04:05]} 21. Ne1 {[%emt 0:09:16]} e4 {[%emt 0:02:08]} 22. g4 {[%emt 0:04:39]} g6 {[%emt 0:07:54]} 23. Rab1 {[%emt 0:03:38]} Nd4 {[%emt 0:02:55]} 24. Bf1 {[%emt 0:03:01]} b6 {[%emt 0:03:10]} 25. Na4 {[%emt 0:00:53]} fxg4 {[%emt 0:02:48]} 26. Nc3 {[%emt 0:01:00]} Bf5 {[%emt 0:01:02]} 27. Bg2 {[%emt 0:03:14]} Rac8 {[%emt 0:00:54]} 28. Rd1 {[%emt 0:03:11]} Bb4 {[%emt 0:04:38]} 29. Kf1 {[%emt 0:01:52]} Bxc3 {[%emt 0:03:21]} 30. bxc3 {[%emt 0:00:08]} Rxc3 {[%emt 0:00:32]} 31. Rb4 {[%emt 0:02:31]} Nc6 {[%emt 0:01:35]} 32. Rxd8+ {[%emt 0:01:29]} Nxd8 {[%emt 0:00:03]} 33. Bxe4 {[%emt 0:00:38]} Nc6 {[%emt 0:01:39]} 34. Bd5+ {[%emt 0:01:52]} Kg7 {[%emt 0:00:46]} 35. Rb2 {[%emt 0:01:25]} Ne5 {[%emt 0:00:46]} 36. Rd2 {[%emt 0:01:21]} Rc1 {[%emt 0:00:35]} 37. Bg2 {[%emt 0:01:12]} Ra1 {[%emt 0:02:14]} 38. Rd5 {[%emt 0:02:57]} Kf6 {[%emt 0:00:50]} 39. Rd6+ {[%emt 0:00:40]} Ke7 {[%emt 0:00:07]} 40. Rd5 {[%emt 0:00:00]} Nc4 {[%emt 0:00:00]} 41. Rd4 {[%emt 0:02:31]} Na3 {[%emt 0:01:57]} 42. Be4 {[%emt 0:04:40]} Bxe4 {[%emt 0:00:20]} 43. Rxe4+ {[%emt 0:00:13]} Kf6 {[%emt 0:00:08]} 44. Ra4 {[%emt 0:01:52]} Nc2 {[%emt 0:00:14]} 45. Rxa7 {[%emt 0:00:11]} Nxe1 {[%emt 0:00:38]} 0-1

[Event "Mitropa Online Cup Open 2021"]
[Site "Hybrid"]
[Date "2021.05.04"]
[Round "8.1"]
[White "Babula, Vlastimil"]
[Black "Prusikin, Michael"]
[Result "1/2-1/2"]
[ECO "D55"]
[WhiteElo "2559"]
[BlackElo "2547"]
[Annotator "ChessBase"]
[PlyCount "66"]
[EventDate "2021.05.04"]
[EventType "team-tourn"]
[EventCountry "NET"]
[SourceTitle "playchess.com"]
[Source "ChessBase"]
[SourceQuality "1"]
[WhiteTeam "Czech Republic"]
[BlackTeam "Germany"]
[WhiteTeamCountry "CZE"]
[BlackTeamCountry "GER"]
[TimeControl "40/5400+30:1800+30"]

1. d4 {[%emt 0:00:00]} d5 {[%emt 0:00:05]} 2. c4 {[%emt 0:00:12]} e6 {[%emt 0:00:04]} 3. Nf3 {[%emt 0:00:26]} Nf6 {[%emt 0:00:05]} 4. Bg5 {[%emt 0:00:30]} Be7 {[%emt 0:00:15]} 5. e3 {[%emt 0:00:37]} h6 {[%emt 0:00:34]} 6. Bxf6 {[%emt 0:01:00]} Bxf6 {[%emt 0:00:07]} 7. Qc2 {[%emt 0:00:28]} Nd7 {[%emt 0:07:13]} 8. Nc3 {[%emt 0:02:03]} c6 {[%emt 0:01:45]} 9. O-O-O {[%emt 0:01:08]} O-O {[%emt 0:05:00]} 10. h4 {[%emt 0:02:35]} g6 {[%emt 0:00:54]} 11. g4 {[%emt 0:04:19]} Bg7 {[%emt 0:00:21]} 12. Kb1 {[%emt 0:01:22]} a6 {[%emt 0:06:04]} 13. cxd5 {[%emt 0:04:57]} cxd5 {[%emt 0:02:01]} 14. Ne2 {[%emt 0:22:02]} Nb6 {[%emt 0:08:35]} 15. Nf4 {[%emt 0:05:23]} Bd7 {[%emt 0:03:46]} 16. Bd3 {[%emt 0:09:59]} Rc8 {[%emt 0:09:25]} 17. Qe2 {[%emt 0:01:19]} Nc4 {[%emt 0:00:14]} 18. Nd2 {[%emt 0:07:21]} Bb5 {[%emt 0:16:33]} 19. g5 {[%emt 0:06:01]} h5 {[%emt 0:08:20]} 20. Rc1 {[%emt 0:03:48]} Qd6 {[%emt 0:08:03]} 21. Nxc4 {[%emt 0:10:47]} dxc4 {[%emt 0:00:04]} 22. Bxc4 {[%emt 0:00:44]} Rxc4 {[%emt 0:00:22]} 23. Rxc4 {[%emt 0:00:09]} e5 {[%emt 0:00:14]} 24. dxe5 {[%emt 0:00:23]} Qxe5 {[%emt 0:00:14]} 25. Rhc1 {[%emt 0:00:40]} Rd8 {[%emt 0:00:31]} 26. a4 {[%emt 0:02:24]} Bxc4 {[%emt 0:00:34]} 27. Rxc4 {[%emt 0:00:11]} b5 {[%emt 0:08:05]} 28. axb5 {[%emt 0:00:52]} Qxb5 {[%emt 0:00:30]} 29. Rc2 {[%emt 0:02:34]} Qf5 {[%emt 0:03:09]} 30. Kc1 {[%emt 0:03:27]} Qa5 {[%emt 0:01:50]} 31. Kb1 {[%emt 0:00:24]} Qf5 {[%emt 0:01:11]} 32. Kc1 {[%emt 0:00:09]} Qa5 {[%emt 0:01:35]} 33. Kb1 {[%emt 0:00:06]} Qf5 {[%emt 0:01:06]} 1/2-1/2